{"text_format":"1","workbook":"xlsx","n_sheets":2,"sheets":["Sheet1","Sheet2"],"not_rendered":{"charts":0,"images":0,"macros":1,"external_links":0,"defined_names":2,"comments":0,"pivot_tables":0},"unopened":[],"bounds":{"document_bytes":16777216,"sheet_cells":100000,"rows_first":2000,"rows_last":500,"rows_between":2000,"halvings":0,"cell_chars":16384,"cell_head_chars":4096},"cells_cut":0,"cells_raw":0,"read":"whole","date_system":"1900"}

{"sheet":"Sheet1","index":0,"n_rows":43,"n_cols":13,"rows_kept":43,"cut":false,"hidden":false,"merged":[[0,0,0,12],[1,0,1,12],[2,0,2,12],[27,1,27,2],[26,1,26,2],[17,0,17,6],[6,0,6,6],[8,0,8,4]]}
["INVOICE FOR"]
["REIMBURSABLE RIM/CREP EASEMENT ACQUISITION SERVICES"]
["REIMBURSABLE RIM/CREP WETLAND RESTORATION TECH ASSISTANCE"]
[]
["Click here to choose SWCD",null,null,null,"SWIFT Work Order No.:"]
[]
["Part A - Easement Acquisition Services"]
["Phase 1:  Funded application through title clearing",null,null,null,null,null,1000]
["Phase 2:  Title clearing through easement recording.",null,null,null,null,null,500]
["Phase 3: Preparation and implementation of conservation plans.",null,null,null,null,null,500]
[null,null,null,null,null,null,null,null,null,null,null,null,"FOR BWSR"]
[null,"Phase 1","Phase 2","Phase 3",null,null,null,null,null,null,null,null,"USE ONLY"]
["Easement #","Column11","Column1","Column2","Column3","Column4","Column5","Column6","Column7","Column8","Column9","Column10","TOTALS:"]
[null,null,null,null,null,null,null,{"$f":"IF(PartA[[#This Row],[Column11]]=\"X\",1000,0)","v":0},{"$f":"IF(PartA[[#This Row],[Column1]]=\"X\",500,0)","v":0},{"$f":"IF(PartA[[#This Row],[Column2]]=\"X\",500,0)","v":0},null,null,{"$f":"SUM(PartA[[#This Row],[Column6]:[Column9]])","v":0}]
[null,null,null,null,null,null,null,{"$f":"IF(PartA[[#This Row],[Column11]]=\"X\",1000,0)","v":0},{"$f":"IF(PartA[[#This Row],[Column1]]=\"X\",500,0)","v":0},{"$f":"IF(PartA[[#This Row],[Column2]]=\"X\",500,0)","v":0},null,null,{"$f":"SUM(PartA[[#This Row],[Column6]:[Column9]])","v":0}]
[null,null,null,null,null,null,null,{"$f":"IF(PartA[[#This Row],[Column11]]=\"X\",1000,0)","v":0},{"$f":"IF(PartA[[#This Row],[Column1]]=\"X\",500,0)","v":0},{"$f":"IF(PartA[[#This Row],[Column2]]=\"X\",500,0)","v":0},null,null,{"$f":"SUM(PartA[[#This Row],[Column6]:[Column9]])","v":0}]
[]
["Part B - Technical Assistance"]
["Section 1:  Plan Development for Wetland Restorations",null,null,null,null,null,500]
[]
["Section 2:  Construction Implementation for Wetland Restorations"]
["(staking/layout, oversight, inspection, final check, as-built plan)"]
["B3:  SWCD provides extensive role in simple project",null,null,null,null,null,1500]
["B4:  SWCD assists project manager in complex project",null,null,null,null,null,1500]
["B5:  SWCD plays extensive role in complex project",null,null,null,null,null,3000]
[]
[null,"Plan Development",null,"Construction Implementation"]
["Column1","Section 1",null,"B3","B4","B5","Column2","Column3","Column4","Column5","Column6","Column7"]
["Easement #XX","Column6","Column1","seek","Column3","Column4","Column5","0","06","07","08","09","Total"]
[null,null,null,null,null,null,null,{"$f":"IF(B30=\"X\",500,0)","v":0},null,{"$f":"IF(D30=\"X\",1500,0)","v":0},0,{"$f":"IF(F30=\"X\",3000,0)","v":0},{"$f":"SUM(Sheet1!$H30:$L30)","v":0}]
[null,null,null,null,null,null,null,{"$f":"IF(B31=\"X\",500,0)","v":0},{"$f":"IF(C31=\"X\",1500,0)","v":0},{"$f":"IF(D31=\"X\",1500,0)","v":0},{"$f":"IF(E31=\"X\",1500,0)","v":0},{"$f":"IF(F31=\"X\",3000,0)","v":0},{"$f":"SUM(Sheet1!$H31:$L31)","v":0}]
[null,null,null,null,null,null,null,0,0,0,0,0,{"$f":"SUM(Sheet1!$H32:$L32)","v":0}]
[null,null,null,null,null,null,null,0,null,0,0,{"$f":"IF(F33=\"X\",3000,0)","v":0}]
[null,null,null,null,null,null,"GRAND TOTALS:",null,null,null,null,null,{"$f":"SUM(M14:M32)","v":0}]
[]
["_______________________________",null,null,null,"______________________"]
["SWCD Representative",null,null,null,"Date"]
[]
["_______________________________",null,null,null,"_______________________"]
["BWSR Engineering Approval",null,null,null,"Date"]
[]
["______________________________",null,null,null,"_______________________"]
["BWSR Easement Section Approval",null,null,null,"Date"]

{"sheet":"Sheet2","index":1,"n_rows":91,"n_cols":1,"rows_kept":91,"cut":false,"hidden":false,"merged":[]}
["Aitkin SWCD"]
["Anoka CD"]
["Becker SWCD"]
["Beltrami SWCD"]
["Benton SWCD"]
["Big Stone SWCD"]
["Blue Earth County SWCD"]
["Brown SWCD"]
["Carlton SWCD"]
["Carver SWCD"]
["Cass SWCD"]
["Chippewa SWCD"]
["Chisago SWCD"]
["Clay SWCD"]
["Clearwater SWCD"]
["Cook SWCD"]
["Cottonwood SWCD"]
["Crow Wing SWCD"]
["Dakota SWCD"]
["Dodge SWCD"]
["Douglas SWCD"]
["Faribault County SWCD"]
["Fillmore SWCD"]
["Freeborn SWCD"]
["Goodhue SWCD"]
["Grant SWCD"]
["Hennepin County ES"]
["Hubbard SWCD"]
["Isanti SWCD"]
["Itasca SWCD"]
["Jackson SWCD"]
["Kanabec SWCD"]
["Kandiyohi SWCD"]
["Kittson SWCD"]
["Koochiching SWCD"]
["Lac qui Parle SWCD"]
["Lake SWCD"]
["Lake of the Woods SWCD"]
["Le Sueur County SWCD"]
["Lincoln SWCD"]
["Lyon SWCD"]
["Mahnomen SWCD"]
["Marshall SWCD"]
["Martin SWCD"]
["McLeod SWCD"]
["Meeker SWCD"]
["Mille Lacs SWCD"]
["Morrison SWCD"]
["Mower County SWCD"]
["Murray SWCD"]
["Nicollet SWCD"]
["Nobles SWCD"]
["Norman SWCD"]
["Olmsted SWCD"]
["Otter Tail, East SWCD"]
["Ottertail, West SWCD"]
["Pennington SWCD"]
["Pine SWCD"]
["Pipestone SWCD"]
["Polk, East SWCD"]
["Polk, West SWCD"]
["Pope SWCD"]
["Ramsey CD"]
["Red Lake SWCD"]
["Redwood SWCD"]
["Renville SWCD"]
["Rice SWCD"]
["Rock SWCD"]
["Root River SWCD"]
["Roseau SWCD"]
["Scott SWCD"]
["Sherburne SWCD"]
["Sibley SWCD"]
["St Louis, North SWCD"]
["St. Louis, South SWCD"]
["Stearns SWCD"]
["Steele County SWCD"]
["Stevens SWCD"]
["Swift SWCD"]
["Todd SWCD"]
["Traverse SWCD"]
["Wabasha SWCD"]
["Wadena SWCD"]
["Waseca SWCD"]
["Waseca SWCD"]
["Washington CD"]
["Watonwan SWCD"]
["Wilkin SWCD"]
["Winona County SWCD"]
["Wright SWCD"]
["Yellow Medicine SWCD"]